Workbook

Sheet Sheet1
A1: 班级 （按出场顺序） | B1: 表演服装（满分20） | G1: 讲稿内容（满分20） | L1: 形式多样（满分20） | Q1: 声音洪亮（满分20） | V1: 队形规范（满分20） | AA1: 总分
B2: 评委1 | C2: 评委2 | D2: 评委3 | E2: 评委4 | F2: 均分 | G2: 评委1 | H2: 评委2 | I2: 评委3 | J2: 评委4 | K2: 均分 | L2: 评委1 | M2: 评委2 | N2: 评委3 | O2: 评委4 | P2: 均分 | Q2: 评委1 | R2: 评委2 | S2: 评委3 | T2: 评委4 | U2: 均分 | V2: 评委1 | W2: 评委2 | X2: 评委3 | Y2: 评委4 | Z2: 均分
A3: 本海工22-3班 | B3: 20 | C3: 18 | D3: 18 | E3: 18 | F3: =AVERAGE(B3:E3) -> 18.50 | G3: 18 | H3: 18 | I3: 18 | J3: 18 | K3: =AVERAGE(G3:J3) -> 18.00 | L3: 20 | M3: 19 | N3: 20 | O3: 20 | P3: =AVERAGE(L3:O3) -> 19.75 | Q3: 17 | R3: 16 | S3: 17 | T3: 16 | U3: =AVERAGE(Q3:T3) -> 16.50 | V3: 13 | W3: 15 | X3: 13 | Y3: 15 | Z3: =AVERAGE(V3:Y3) -> 14.00 | AA3: =F3+K3+P3+U3+Z3 -> 86.75 | AB3: 晋级决赛
A4: 本海工22-1班 | B4: 20 | C4: 18 | D4: 20 | E4: 17 | F4: =AVERAGE(B4:E4) -> 18.75 | G4: 13 | H4: 16 | I4: 15 | J4: 16 | K4: =AVERAGE(G4:J4) -> 15.00 | L4: 16 | M4: 17 | N4: 15 | O4: 15 | P4: =AVERAGE(L4:O4) -> 15.75 | Q4: 17 | R4: 16 | S4: 15 | T4: 17 | U4: =AVERAGE(Q4:T4) -> 16.25 | V4: 15 | W4: 16 | X4: 15 | Y4: 17 | Z4: =AVERAGE(V4:Y4) -> 15.75 | AA4: =F4+K4+P4+U4+Z4 -> 81.50
A5: 本安全22-3班 | B5: 20 | C5: 19 | D5: 20 | E5: 17 | F5: =AVERAGE(B5:E5) -> 19.00 | G5: 16 | H5: 17 | I5: 15 | J5: 18 | K5: =AVERAGE(G5:J5) -> 16.50 | L5: 15 | M5: 15 | N5: 15 | O5: 15 | P5: =AVERAGE(L5:O5) -> 15.00 | Q5: 18 | R5: 18 | S5: 15 | T5: 19 | U5: =AVERAGE(Q5:T5) -> 17.50 | V5: 18 | W5: 17 | X5: 18 | Y5: 16 | Z5: =AVERAGE(V5:Y5) -> 17.25 | AA5: =F5+K5+P5+U5+Z5 -> 85.25
A6: 本安全22-2班 | B6: 20 | C6: 20 | D6: 20 | E6: 19 | F6: =AVERAGE(B6:E6) -> 19.75 | G6: 20 | H6: 16 | I6: 18 | J6: 18 | K6: =AVERAGE(G6:J6) -> 18.00 | L6: 18 | M6: 17 | N6: 15 | O6: 15 | P6: =AVERAGE(L6:O6) -> 16.25 | Q6: 19 | R6: 20 | S6: 20 | T6: 20 | U6: =AVERAGE(Q6:T6) -> 19.75 | V6: 19 | W6: 20 | X6: 18 | Y6: 18 | Z6: =AVERAGE(V6:Y6) -> 18.75 | AA6: =F6+K6+P6+U6+Z6 -> 92.50 | AB6: 晋级决赛
A7: 本安全22-1班 | B7: 10 | C7: 10 | D7: 10 | E7: 10 | F7: =AVERAGE(B7:E7) -> 10.00 | G7: 17 | H7: 18 | I7: 17 | J7: 17 | K7: =AVERAGE(G7:J7) -> 17.25 | L7: 17 | M7: 16 | N7: 18 | O7: 17 | P7: =AVERAGE(L7:O7) -> 17.00 | Q7: 17 | R7: 17 | S7: 17 | T7: 18 | U7: =AVERAGE(Q7:T7) -> 17.25 | V7: 18 | W7: 18 | X7: 15 | Y7: 17 | Z7: =AVERAGE(V7:Y7) -> 17.00 | AA7: =F7+K7+P7+U7+Z7 -> 78.50
A8: 本海工22-2班 | B8: 18 | C8: 17 | D8: 18 | E8: 20 | F8: =AVERAGE(B8:E8) -> 18.25 | G8: 17 | H8: 19 | I8: 16 | J8: 17 | K8: =AVERAGE(G8:J8) -> 17.25 | L8: 18 | M8: 18 | N8: 17 | O8: 19 | P8: =AVERAGE(L8:O8) -> 18.00 | Q8: 18 | R8: 19 | S8: 17 | T8: 17 | U8: =AVERAGE(Q8:T8) -> 17.75 | V8: 18 | W8: 19 | X8: 18 | Y8: 17 | Z8: =AVERAGE(V8:Y8) -> 18.00 | AA8: =F8+K8+P8+U8+Z8 -> 89.25 | AB8: 晋级决赛
